bitfinex-derivatives/quotes_SOLF0:USTF0_20260114
["timestamp","ask_amount","ask_price","bid_price","bid_amount"]
[1768414332506,6.1474,146.39,146.28,192.57599853]
[1768414332815,11.25967284,146.38,146.27,10.67336047]
[1768414333017,6.1484,146.37,146.27,10.67336047]
[1768414333221,17.40807284,146.37,146.27,10.67336047]
[1768414333522,17.40807284,146.37,146.29,10.67336047]
[1768414335015,6.1487,146.36,146.29,10.67336047]
[1768414336241,11.25967284,146.37,146.29,91.35336047]
[1768414336417,11.25967284,146.37,146.3,10.67336047]
[1768414338722,17.40787284,146.37,146.3,10.67336047]
[1768414339519,17.40787284,146.37,146.3,91.37336047]
[1768414340224,17.44512925,146.35,146.26,12.03517406]
[1768414340420,11.29612925,146.35,146.28,10.84579643]
[1768414340617,11.52305914,146.37,146.28,10.84579643]
[1768414341827,14.78431943,146.4,146.28,10.84579643]
[1768414342027,11.52305914,146.4,146.3,10.72397605]
[1768414342224,11.52305914,146.4,146.32,10.72397605]
[1768414342416,11.52305914,146.4,146.33,10.72397605]
[1768414342616,107.10695914,146.46,146.34,10.72397605]
[1768414342820,11.52305914,146.45,146.34,10.72397605]
[1768414343026,11.52305914,146.45,146.36,10.72397605]
[1768414343530,6.1453,146.44,146.36,16.87247605]
[1768414344129,11.52305914,146.45,146.36,16.87247605]
[1768414344517,11.52305914,146.45,146.36,91.42397605]
[1768414344716,11.52305914,146.45,146.31,95.6732]
[1768414344717,11.52305914,146.42,146.3,3.26126029]
[1768414344925,11.52305914,146.42,146.31,91.42397605]
[1768414345425,11.52305914,146.45,146.37,13.98523634]
[1768414345727,95.5449,146.52,146.4,10.72397605]
[1768414345728,11.52305914,146.49,146.4,10.72397605]
[1768414346925,6.1437,146.48,146.4,16.87077605]
[1768414351832,6.1437,146.48,146.39,83.96126029]
[1768414351833,11.52305914,146.49,146.42,10.72397605]
[1768414352433,17.66625914,146.49,146.42,10.72397605]
[1768414356336,11.52305914,146.47,146.41,2.08854596]
[1768414356740,11.52305914,146.47,146.39,12.81252201]
[1768414357427,11.52305914,146.47,146.39,18.95972201]
[1768414358140,11.52305914,146.47,146.41,2.08854596]
[1768414358534,11.52305914,146.47,146.41,12.81252201]
[1768414358740,6.1438,146.48,146.41,12.81252201]
[1768414360634,17.66685914,146.48,146.41,12.81252201]
[1768414360835,6.144,146.47,146.41,12.81252201]
[1768414361840,11.52305914,146.46,146.38,97.55137605]
[1768414362044,17.66745914,146.46,146.39,12.81252201]
[1768414362234,11.52305914,146.46,146.39,12.81252201]
[1768414362438,11.52305914,146.48,146.41,12.81252201]
[1768414362742,17.66695914,146.48,146.41,12.81252201]
[1768414363347,6.144,146.47,146.41,12.81252201]
[1768414364948,11.52305914,146.48,146.41,12.81252201]
[1768414365142,11.52305914,146.48,146.41,18.95892201]
[1768414365948,11.52305914,146.51,146.43,10.72397605]
[1768414366146,11.52305914,146.51,146.43,12.81252201]
[1768414367250,11.52305914,146.51,146.45,2.08854596]
[1768414367549,11.52305914,146.51,146.43,12.81252201]
[1768414367751,11.52305914,146.53,146.46,16.86827605]
[1768414368555,11.52305914,146.53,146.46,18.95682201]
[1768414368750,13.6116051,146.56,146.47,16.86787605]
[1768414369844,17.66395914,146.55,146.47,16.86787605]
[1768414370256,11.52305914,146.54,146.47,16.86787605]
[1768414372049,17.66415914,146.54,146.47,16.86787605]
[1768414372558,17.66415914,146.54,146.47,10.72397605]
[1768414373657,11.52305914,146.54,146.47,16.86787605]
[1768414374453,11.6261155,146.57,146.49,10.82073943]
[1768414374855,6.1392,146.59,146.51,10.82073943]
[1768414375053,11.6261155,146.6,146.52,12.90928539]
[1768414376162,17.7647155,146.6,146.52,19.05098539]
[1768414378357,6.139,146.59,146.52,12.90928539]
[1768414378558,11.6261155,146.59,146.51,20.31676253]
[1768414378760,11.6261155,146.57,146.49,10.82073943]
[1768414379760,17.7659155,146.57,146.5,10.82073943]
[1768414381163,6.1398,146.57,146.5,10.82073943]
[1768414381363,6.1398,146.57,146.5,12.90928539]
[1768414381873,13.71466146,146.58,146.5,19.05218539]
[1768414383072,6.1401,146.57,146.5,19.05218539]
[1768414384165,6.1401,146.57,146.5,16.96363943]
[1768414384871,13.71466146,146.58,146.49,20.40551463]
[1768414384872,11.6261155,146.55,146.49,20.40551463]
[1768414385072,11.6261155,146.55,146.48,93.52928539]
[1768414385269,11.6261155,146.55,146.49,16.96383943]
[1768414385476,11.6261155,146.57,146.49,16.96383943]
[1768414385869,11.6261155,146.57,146.5,10.82073943]
[1768414386572,11.6261155,146.57,146.5,12.90928539]
[1768414387576,11.6261155,146.57,146.5,19.05198539]
[1768414388171,17.7660155,146.57,146.5,19.05198539]
[1768414390574,17.7660155,146.57,146.5,16.96343943]
[1768414391676,11.6261155,146.57,146.51,6.1423]
[1768414392578,13.71466146,146.57,146.5,10.82073943]
[1768414393782,6.1403,146.56,146.5,10.82073943]
[1768414394282,11.6261155,146.55,146.47,6.1437]
[1768414394474,3.56524116,146.49,146.41,10.82073943]
[1768414394879,5.68662767,146.48,146.41,10.82073943]
[1768414395281,3.59808171,146.48,146.41,10.82073943]
[1768414396381,3.59808171,146.48,146.39,80.62]
[1768414396685,5.71912715,146.47,146.39,91.44073943]
[1768414397077,5.71912715,146.47,146.39,10.82073943]
[1768414397282,2.08854596,146.45,146.39,10.82073943]
[1768414397677,9.80800224,146.46,146.33,10.82073943]
[1768414397678,2.08854596,146.43,146.33,10.82073943]
[1768414397884,2.08854596,146.4,146.33,10.82073943]
[1768414398083,8.23524596,146.41,146.33,10.82073943]
[1768414398682,2.08854596,146.41,146.33,10.82073943]
[1768414400090,5.84577415,146.41,146.33,10.82073943]
[1768414400393,3.76838546,146.4,146.33,10.82073943]
[1768414400788,5.93055149,146.39,146.3,11.47889964]
[1768414400987,3.84200553,146.38,146.3,11.47889964]
[1768414401291,2.08854596,146.37,146.3,11.47889964]
[1768414401489,2.08854596,146.35,146.27,11.47889964]
[1768414401887,5.9601999,146.35,146.27,11.47889964]
[1768414403491,2.08854596,146.33,146.27,11.47889964]
[1768414404897,3.87165394,146.35,146.27,11.47889964]
[1768414405490,2.08854596,146.36,146.27,11.47889964]
[1768414405989,6.07546838,146.34,146.27,11.47889964]
[1768414407189,84.67494538,146.37,146.27,11.47889964]
[1768414407390,2.08854596,146.32,146.24,11.47889964]
[1768414407795,6.13106657,146.3,146.21,13.5674456]
[1768414407993,6.13106657,146.3,146.21,11.47889964]
[1768414408390,95.6742,146.32,146.21,11.47889964]
[1768414408391,6.13106657,146.29,146.21,11.47889964]
[1768414408597,4.04252061,146.28,146.21,11.47889964]
[1768414409794,10.19462061,146.28,146.18,11.47889964]
[1768414410294,4.09690536,146.26,146.15,12.66911118]
[1768414410701,4.09690536,146.26,146.16,6.1566]
[1768414410898,4.09690536,146.26,146.17,11.47889964]
[1768414412100,91.0017563,146.29,146.18,11.47889964]
[1768414412802,91.0017563,146.29,146.19,11.47889964]
[1768414412803,10.3017563,146.29,146.19,11.47889964]
[1768414413389,4.1501563,146.29,146.2,11.47889964]
[1768414415213,6.1513,146.3,146.21,11.47889964]
[1768414415408,4.22766376,146.29,146.18,11.47889964]
[1768414415609,4.22766376,146.28,146.18,11.47889964]
[1768414415809,4.22766376,146.28,146.18,17.63479964]
[1768414416108,4.25297457,146.27,146.18,11.47889964]
[1768414416406,4.25297457,146.3,146.18,11.47889964]
[1768414416905,4.25297457,146.3,146.2,11.47889964]
[1768414417400,4.25297457,146.3,146.21,11.47889964]
[1768414417798,6.1508,146.31,146.21,11.47889964]
[1768414417999,4.30251961,146.3,146.21,11.47889964]
[1768414418603,10.45381961,146.3,146.21,11.47889964]
[1768414420700,6.1504,146.32,146.22,11.47889964]
[1768414421394,10.52504443,146.32,146.23,11.47889964]
[1768414422101,4.37464443,146.32,146.23,17.63269964]
[1768414422307,4.39811846,146.32,146.24,11.47889964]
[1768414423103,4.42136417,146.42,146.3,11.47889964]
[1768414424201,4.44413975,146.4,146.3,11.47889964]
[1768414424402,4.44413975,146.38,146.3,11.47889964]
[1768414425799,85.12418187,146.37,146.25,11.47889964]
[1768414426015,4.38418187,146.36,146.25,11.47889964]
[1768414426711,6.1495,146.34,146.26,6.1526]
[1768414426914,6.1495,146.34,146.26,17.63149964]
[1768414427097,6.1495,146.34,146.23,80.74]
[1768414427098,6.1495,146.34,146.27,11.47889964]
[1768414428309,85.06556387,146.35,146.27,11.47889964]
[1768414429005,4.29680693,146.31,146.21,11.47889964]
[1768414429216,85.03680693,146.3,146.21,11.47889964]
[1768414429509,180.72390693,146.3,146.21,11.47889964]
[1768414429713,6.1526,146.27,146.21,11.47889964]
[1768414430101,4.26839253,146.27,146.16,11.47889964]
[1768414431614,6.1537,146.24,146.16,11.47889964]
[1768414431813,80.74,146.24,146.16,11.47889964]
[1768414432210,6.1542,146.23,146.16,11.47889964]
[1768414434614,4.12013742,146.22,146.12,11.83173732]
[1768414435915,10.27473742,146.22,146.13,11.83173732]
[1768414436720,91.03473742,146.22,146.13,11.83173732]
[1768414437023,4.04254027,146.21,146.11,11.83173732]
[1768414437915,6.156,146.19,146.11,11.83173732]
[1768414439617,80.78,146.23,146.12,11.83173732]
[1768414439813,3.9672829,146.22,146.12,11.83173732]
[1768414440522,6.1554,146.2,146.12,11.83173732]
[1768414440818,3.94277247,146.21,146.12,11.83173732]
[1768414441809,6.1559,146.19,146.12,11.83173732]
[1768414442006,3.91853342,146.17,146.08,11.83173732]
[1768414442208,80.78,146.17,146.08,11.83173732]
[1768414442411,80.78,146.19,146.1,11.83173732]
[1768414443315,80.78,146.19,146.12,11.83173732]
[1768414444221,6.1546,146.22,146.13,11.83173732]
[1768414444422,80.8,146.21,146.13,11.83173732]
[1768414444919,86.955,146.21,146.13,11.83173732]
[1768414445220,6.155,146.21,146.13,11.83173732]
[1768414445520,10.02495562,146.23,146.14,11.83173732]
[1768414445721,90.82495562,146.23,146.14,11.83173732]
[1768414446216,84.67085562,146.23,146.14,11.83173732]
[1768414446422,84.67085562,146.23,146.08,176.6251]
[1768414446423,3.8242301,146.2,146.11,17.99073732]
[1768414446722,3.8242301,146.2,146.11,11.83173732]
[1768414446920,6.1567,146.17,146.11,11.83173732]
[1768414447125,3.8242301,146.2,146.11,11.83173732]
[1768414447723,6.156,146.19,146.11,11.83173732]
[1768414449123,9.91244051,146.19,146.11,11.83173732]
[1768414449314,6.1566,146.17,146.11,11.83173732]
[1768414449919,9.91244051,146.19,146.11,11.83173732]
[1768414450820,9.91244051,146.19,146.11,17.99073732]
[1768414451921,9.91244051,146.19,146.11,11.83173732]
[1768414452223,3.69097856,146.18,146.08,11.83173732]
[1768414453019,3.69097856,146.18,146.06,11.83173732]
[1768414453419,3.66976992,146.17,146.06,11.83173732]
[1768414454118,6.1579,146.14,146.06,17.99253732]
[1768414454315,6.1579,146.14,146.07,11.83173732]
[1768414454930,3.66976992,146.17,146.08,11.83173732]
[1768414455817,3.66976992,146.17,146.09,11.83173732]
[1768414456516,8.68208483,146.3,146.09,11.83173732]
[1768414456517,3.60729951,146.29,146.17,11.83173732]
[1768414456821,3.60729951,146.29,146.18,11.83173732]
[1768414458925,9.75889951,146.29,146.2,17.98683732]
[1768414461829,9.75889951,146.29,146.21,11.09433704]
[1768414462330,6.1516,146.29,146.22,11.09433704]
[1768414462733,84.26847628,146.32,146.23,11.09433704]
[1768414463334,3.44847628,146.32,146.23,11.09433704]
[1768414463835,80.8,146.36,146.25,11.09433704]
[1768414463836,3.41127199,146.35,146.25,11.09433704]
[1768414464933,9.56047199,146.35,146.26,11.09433704]
[1768414470133,3.30488198,146.33,146.23,17.24823704]
[1768414470521,3.30488198,146.33,146.24,11.09433704]
[1768414471831,9.45508198,146.33,146.24,11.09433704]
[1768414474132,3.23778118,146.29,146.21,11.09433704]
[1768414475845,6.1522,146.28,146.21,11.09433704]
[1768414479040,6.1514,146.3,146.21,11.09433704]
[1768414479936,6.1514,146.3,146.22,11.09433704]
[1768414480239,3.15829138,146.33,146.23,11.09433704]
[1768414480445,3.15829138,146.33,146.24,11.09433704]
[1768414481128,299.1685,146.4,146.24,11.09433704]
[1768414481129,3.12787463,146.4,146.27,11.09433704]
[1768414481333,3.12787463,146.4,146.28,11.09433704]
[1768414481835,3.12787463,146.4,146.31,11.09433704]
[1768414482635,3.12787463,146.4,146.32,17.24443704]
[1768414483840,3.12787463,146.4,146.33,11.09433704]
[1768414488045,9.27497463,146.4,146.32,6.1501]
[1768414488540,9.27497463,146.4,146.32,17.24443704]
[1768414488844,3.12787463,146.4,146.33,6.1497]
[1768414489843,86.8864,146.42,146.33,17.24403704]
[1768414490046,89.88431867,146.42,146.33,17.24403704]
[1768414490538,9.14431867,146.42,146.33,17.24403704]
[1768414490842,89.88431867,146.42,146.33,17.24403704]
[1768414491242,9.14431867,146.42,146.33,17.24403704]
[1768414491443,89.88431867,146.42,146.33,17.24403704]
[1768414491644,6.1465,146.41,146.33,17.24403704]
[1768414492043,8.28992527,146.45,146.35,10.26595069]
[1768414492244,89.02992527,146.45,146.35,10.26595069]
[1768414492949,2.9340753,146.44,146.35,10.26595069]
[1768414493148,2.9340753,146.43,146.35,10.26595069]
[1768414494748,6.1461,146.42,146.35,10.26595069]
[1768414496542,6.1455,146.44,146.35,10.26595069]
[1768414496742,86.8655,146.44,146.35,10.26595069]
[1768414497145,6.1455,146.44,146.37,10.26595069]
[1768414498144,80.72,146.45,146.37,16.41405069]
[1768414498345,2.8956846,146.46,146.37,16.41405069]
[1768414498543,2.8956846,146.46,146.37,10.26595069]
[1768414498544,6.1453,146.44,146.37,10.26595069]
[1768414499459,6.1453,146.44,146.32,115.88702872]
[1768414499460,2.85864794,146.44,146.34,10.26595069]
[1768414500671,2.84657026,146.41,146.34,10.26595069]
[1768414501460,2.09151675,146.4,146.34,10.26595069]
[1768414501850,2.82288343,146.44,146.34,10.26595069]
[1768414502055,4.91440018,146.44,146.36,10.26595069]
[1768414502454,2.09151675,146.45,146.37,10.26595069]
[1768414503352,83.51118471,146.46,146.37,10.26595069]
[1768414503552,6.1449,146.45,146.37,10.26595069]
[1768414503862,2.79980906,146.45,146.37,10.26595069]
[1768414504067,6.1458,146.43,146.37,10.26595069]
[1768414504265,2.79980906,146.44,146.34,10.26595069]
[1768414504651,6.1466,146.41,146.34,10.26595069]
[1768414505358,6.147,146.4,146.32,20.22012872]
[1768414505663,2.77734747,146.39,146.31,10.26595069]
[1768414505856,6.1482,146.37,146.31,10.26595069]
[1768414507564,2.75524257,146.37,146.28,10.26595069]
[1768414508160,95.6414,146.37,146.25,10.26595069]
[1768414508371,2.75524257,146.32,146.19,10.26595069]
[1768414508664,83.45524257,146.32,146.19,10.26595069]
[1768414509056,6.1513,146.3,146.22,10.26595069]
[1768414509266,98.4252263,146.31,146.22,10.26595069]
[1768414509559,2.7444263,146.31,146.22,10.26595069]
[1768414510260,2.73373626,146.27,146.19,10.26595069]
[1768414510464,83.45373626,146.27,146.19,10.26595069]
[1768414511867,6.153,146.26,146.19,10.26595069]
[1768414512253,6.153,146.26,146.11,80.72]
[1768414512254,2.71277654,146.25,146.16,10.26595069]
[1768414512462,6.1539,146.24,146.16,10.26595069]
[1768414513170,80.72,146.23,146.16,10.26595069]
[1768414513360,5.33164941,146.26,146.16,10.26595069]
[1768414513559,80.72,146.29,146.17,10.26595069]
[1768414513862,80.72,146.3,146.18,10.26595069]
[1768414514164,83.41241049,146.3,146.18,10.26595069]
[1768414515160,2.69241049,146.3,146.2,10.26595069]
[1768414515366,83.43241049,146.3,146.2,10.26595069]
[1768414515759,83.43241049,146.3,146.21,10.26595069]
[1768414516071,2.67258671,146.28,146.18,10.26595069]
[1768414516362,6.153,146.26,146.18,10.26595069]
[1768414516760,83.41258671,146.28,146.18,10.26595069]
[1768414516963,80.74,146.29,146.18,10.26595069]
[1768414517166,2.66272009,146.28,146.18,10.26595069]
[1768414517759,2.65295766,146.23,146.12,10.26595069]
[1768414517974,80.74,146.22,146.12,10.26595069]
[1768414518160,86.8948,146.22,146.13,10.26595069]
[1768414518470,6.1548,146.22,146.13,10.26595069]
[1768414518962,6.1548,146.22,146.13,16.42395069]
[1768414519167,86.8937,146.24,146.14,10.26595069]
[1768414519771,6.1542,146.23,146.14,10.26595069]
[1768414520655,80.74,146.24,146.15,10.31245984]
[1768414520962,86.9134,146.25,146.15,10.31245984]
[1768414521166,6.1538,146.24,146.15,16.46965984]
[1768414521356,80.76,146.25,146.16,10.31245984]
[1768414521560,83.36632578,146.25,146.16,10.31245984]
[1768414521762,83.36632578,146.25,146.11,95.8048]
[1768414521763,6.155,146.21,146.12,10.31245984]
[1768414522871,86.9143,146.23,146.14,10.31245984]
[1768414523369,2.58823514,146.21,146.11,16.47155984]
[1768414523565,2.58823514,146.21,146.12,10.31245984]
[1768414524276,6.1559,146.19,146.12,10.31245984]
[1768414524572,2.57935192,146.2,146.12,10.31245984]
[1768414525163,2.57935192,146.2,146.09,16.47215984]
[1768414525473,6.1556,146.2,146.11,10.31245984]
[1768414526774,6.1558,146.19,146.11,10.31245984]
[1768414527469,89.48860644,146.21,146.12,10.31245984]
[1768414528777,80.78,146.22,146.13,10.31245984]
[1768414529676,2.52891909,146.21,146.13,10.31245984]
[1768414529863,2.52891909,146.2,146.09,10.31245984]
[1768414530574,2.52891909,146.2,146.11,10.31245984]
[1768414530774,83.32891909,146.2,146.11,10.31245984]
[1768414531374,6.1558,146.19,146.11,10.31245984]
[1768414532078,83.32891909,146.2,146.11,10.31245984]
[1768414532582,2.51268873,146.17,146.08,10.31245984]
[1768414533780,6.1577,146.15,146.08,10.31245984]
[1768414534283,80.8,146.14,146.05,10.31245984]
[1768414534480,86.9581,146.14,146.06,10.31245984]
[1768414534777,80.8,146.16,146.06,10.31245984]
[1768414535182,86.9572,146.16,146.07,10.31245984]
[1768414535383,82.89835427,146.16,146.07,12.41081411]
[1768414535590,85.38765379,146.16,146.07,10.31245984]
[1768414536488,2.09835427,146.14,146.07,10.31245984]
[1768414537277,6.1588,146.12,146.04,11.50358799]
[1768414537484,6.1588,146.12,146.04,12.41081411]
[1768414537684,6.1588,146.12,146.04,10.31245984]
[1768414537885,6.1588,146.12,146.05,10.31245984]
[1768414538087,2.09835427,146.13,146.05,10.31245984]
[1768414538386,10.73056007,146.14,146.05,12.41081411]
[1768414538589,6.157,146.16,146.07,12.41081411]
[1768414538784,82.91835427,146.19,146.1,10.31245984]
[1768414539185,82.91835427,146.19,146.11,16.47135984]
[1768414539498,6.1556,146.2,146.12,10.31245984]
[1768414539696,6.1547,146.22,146.13,10.31245984]
[1768414539988,4.55047234,146.27,146.17,12.41081411]
[1768414540188,4.55047234,146.27,146.17,10.31245984]
[1768414540398,4.55047234,146.27,146.18,12.41081411]
[1768414540592,6.1522,146.28,146.19,10.31245984]
[1768414540790,2.09835427,146.27,146.19,10.31245984]
[1768414540995,4.54320426,146.27,146.19,10.31245984]
[1768414541393,2.44484999,146.27,146.19,10.31245984]
[1768414541595,6.1521,146.28,146.19,10.31245984]
[1768414541791,6.1526,146.27,146.19,10.31245984]
[1768414542289,6.1529,146.26,146.19,10.31245984]
[1768414542489,98.13177157,146.29,146.17,10.31245984]
[1768414542490,2.43767157,146.27,146.17,10.31245984]
[1768414543087,6.1534,146.25,146.17,10.31245984]
[1768414543287,6.1534,146.25,146.14,10.31245984]
[1768414543288,2.4306103,146.24,146.14,10.31245984]
[1768414543686,6.1542,146.23,146.14,10.31245984]
[1768414543890,80.82,146.25,146.15,10.31245984]
[1768414544085,80.82,146.25,146.12,10.31245984]
[1768414544086,2.42368618,146.22,146.12,10.31245984]
[1768414544392,2.42368618,146.21,146.12,10.31245984]
[1768414544993,80.8,146.23,146.12,10.31245984]
[1768414545201,83.21682969,146.24,146.12,10.31245984]
[1768414545591,80.8,146.25,146.15,10.31245984]
[1768414546904,86.9533,146.25,146.16,10.31245984]
[1768414547205,98.088372,146.3,146.16,10.31245984]
[1768414547505,2.403372,146.29,146.19,10.31245984]
[1768414548001,6.1521,146.28,146.19,10.31245984]
[1768414548209,2.39676514,146.27,146.16,10.31245984]
[1768414548796,6.1532,146.25,146.16,10.31245984]
[1768414549302,8.54926514,146.27,146.17,10.31245984]
[1768414549898,8.54926514,146.27,146.18,10.31245984]
[1768414550499,6.1525,146.27,146.18,10.31245984]
[1768414552302,8.53328326,146.26,146.18,10.31245984]
[1768414552503,2.38038326,146.26,146.18,10.31245984]
[1768414553604,2.36788468,146.28,146.18,10.31245984]
[1768414554401,6.1529,146.26,146.18,10.31245984]
[1768414554804,2.3618195,146.26,146.18,10.31245984]
[1768414555004,8.5149195,146.26,146.18,10.31245984]
[1768414555504,6.1541,146.23,146.15,91.01273264]
[1768414555806,98.07307914,146.25,146.15,10.21273264]
[1768414556102,6.1546,146.22,146.15,10.21273264]
[1768414556499,2.35587914,146.25,146.15,10.21273264]
[1768414556696,2.3499762,146.26,146.15,10.21273264]
[1768414557507,6.1542,146.23,146.16,10.21273264]
[1768414557810,2.34414176,146.24,146.16,10.21273264]
[1768414558507,2.34414176,146.22,146.13,10.21273264]
[1768414558702,83.14414176,146.22,146.13,10.21273264]
[1768414558899,83.14414176,146.22,146.09,80.8]
[1768414558900,2.33824112,146.21,146.1,10.21273264]
[1768414560008,6.1562,146.18,146.11,10.21273264]
[1768414560595,6.1556,146.2,146.12,10.21273264]
[1768414560796,98.05412091,146.24,146.12,10.21273264]
[1768414561003,2.32682091,146.22,146.12,10.21273264]
[1768414561902,80.8,146.24,146.12,10.21273264]
[1768414562208,6.1542,146.23,146.14,10.21273264]
[1768414564706,2.30419472,146.22,146.11,10.21273264]
[1768414565100,8.45889472,146.22,146.12,10.21273264]
[1768414565296,83.10419472,146.25,146.12,10.21273264]
[1768414565601,2.30419472,146.23,146.12,10.21273264]
[1768414566806,6.1547,146.22,146.12,10.21273264]
[1768414567508,6.1547,146.22,146.13,10.21273264]
[1768414568211,6.155,146.21,146.13,10.21273264]
[1768414568509,2.28804836,146.19,146.1,10.21273264]
[1768414568906,98.04744836,146.19,146.1,10.21273264]
[1768414569608,2.28275878,146.18,146.1,10.21273264]
[1768414569806,6.1571,146.16,146.1,10.21273264]
[1768414570011,2.2775274,146.21,146.1,10.21273264]
[1768414570207,2.2775274,146.24,146.11,10.21273264]
[1768414570408,83.0775274,146.24,146.11,10.21273264]
[1768414570610,6.1547,146.22,146.15,10.21273264]
[1768414574219,89.2314274,146.24,146.15,16.37003264]
[1768414574406,83.0775274,146.24,146.15,10.21273264]
[1768414575018,6.1541,146.23,146.15,10.21273264]
[1768414575604,6.1541,146.23,146.16,10.21273264]
[1768414575806,6.1535,146.25,146.16,10.21273264]
[1768414576805,6.1535,146.25,146.17,10.21273264]
[1768414577818,6.1537,146.24,146.17,10.21273264]
[1768414578111,2.23794515,146.25,146.17,10.21273264]
[1768414578502,2.23794515,146.24,146.13,10.21273264]
[1768414578910,2.23326931,146.23,146.13,10.21273264]
[1768414579107,6.1549,146.21,146.13,10.21273264]
[1768414580313,2.23326931,146.23,146.14,16.37043264]
[1768414581115,6.1545,146.22,146.14,10.21273264]
[1768414581511,2.23326931,146.23,146.14,10.21273264]
[1768414582708,6.1554,146.2,146.14,10.21273264]
[1768414583416,8.3681192,146.2,146.12,10.28998901]
[1768414583615,6.1558,146.19,146.12,10.28998901]
[1768414583815,2.2127192,146.2,146.12,10.28998901]
[1768414584014,2.2127192,146.2,146.1,10.28998901]
[1768414584315,2.20835408,146.19,146.1,10.28998901]
[1768414584712,95.7331,146.23,146.1,10.28998901]
[1768414585015,83.00409964,146.23,146.13,10.28998901]
[1768414585407,6.155,146.21,146.14,10.28998901]
[1768414588915,6.155,146.21,146.15,10.28998901]
[1768414589118,8.35839964,146.23,146.15,10.28998901]
[1768414592220,6.1545,146.22,146.15,10.28998901]
[1768414593114,6.155,146.21,146.15,10.28998901]
[1768414593315,2.17165503,146.22,146.12,10.28998901]
[1768414594713,2.16780715,146.2,146.12,10.28998901]
[1768414595829,6.1567,146.17,146.12,10.28998901]
[1768414596217,2.16029111,146.19,146.09,10.28998901]
[1768414596422,2.16029111,146.17,146.09,10.28998901]
[1768414596636,6.158,146.14,146.05,6.1613]
[1768414596825,176.5671,146.18,146.05,16.45128901]
[1768414596826,2.15660932,146.15,146.05,16.45128901]
[1768414597016,2.15660932,146.15,146.06,10.28998901]
[1768414597828,6.1585,146.13,146.06,10.28998901]
[1768414598119,91.63818258,146.18,146.07,10.28998901]
[1768414598423,6.1566,146.17,146.07,10.28998901]
[1768414599225,6.1561,146.19,146.11,10.28998901]
[1768414599714,6.1561,146.19,146.12,10.28998901]
[1768414602030,2.14939969,146.21,146.08,80.82]
[1768414602031,82.95902754,146.23,146.13,10.28998901]
[1768414602324,2.13902754,146.22,146.13,10.28998901]
[1768414602520,2.13902754,146.19,146.1,10.28998901]
[1768414602914,6.1565,146.18,146.1,10.28998901]
[1768414605927,6.1565,146.18,146.11,10.28998901]
[1768414606129,97.82274838,146.22,146.11,10.28998901]
[1768414606130,2.08094838,146.22,146.11,10.28998901]
[1768414606337,176.5531,146.23,146.11,10.28998901]
[1768414606338,2.08094838,146.2,146.11,10.28998901]
[1768414606625,2.08094838,146.2,146.12,10.28998901]
[1768414606829,6.1562,146.18,146.12,10.28998901]
[1768414608730,6.1559,146.19,146.12,10.28998901]
[1768414610829,6.1559,146.19,146.12,16.44858901]
[1768414611133,6.1559,146.19,146.12,10.28998901]
[1768414611435,2.08094838,146.2,146.12,10.28998901]
[1768414611932,1.93023733,146.19,146.09,9.7140939]
[1768414612129,1.93023733,146.18,146.09,9.7140939]
[1768414612729,82.75023733,146.18,146.09,9.7140939]
[1768414613839,6.1571,146.16,146.09,9.7140939]
[1768414614632,8.08673733,146.18,146.1,9.7140939]
[1768414615832,6.1566,146.17,146.11,9.7140939]
[1768414616737,86.976,146.19,146.12,9.7140939]
[1768414617627,6.156,146.19,146.12,9.7140939]
[1768414618730,6.155,146.21,146.13,9.7140939]
[1768414619039,1.77058655,146.23,146.13,9.7140939]
[1768414619524,108.0068,146.28,146.15,9.7140939]
[1768414619525,193.20178655,146.26,146.15,9.7140939]
[1768414619838,1.74875773,146.25,146.15,9.7140939]
[1768414620425,6.1549,146.21,146.15,9.7140939]
[1768414620631,1.74875773,146.21,146.12,9.7140939]
[1768414620932,1.72722483,146.2,146.12,9.7140939]
[1768414621133,1.72722483,146.23,146.1,9.7140939]
[1768414621633,1.72722483,146.23,146.13,9.7140939]
[1768414622633,176.5467,146.24,146.09,80.82]
[1768414622634,1.7059297,146.2,146.1,9.7140939]
[1768414622934,6.1571,146.16,146.1,9.7140939]
[1768414624635,6.1574,146.15,146.1,9.7140939]
[1768414624831,1.64342675,146.14,146.01,5.35065577]
[1768414625032,1.64342675,146.14,146.03,9.7140939]
[1768414625033,1.64342675,146.13,146.03,9.7140939]
[1768414625336,6.1592,146.11,146.03,9.7140939]
[1768414625843,6.1596,146.1,146.03,9.7140939]
[1768414626639,6.1596,146.1,146.0,10.90550751]
[1768414626640,1.60320134,146.09,146.0,10.90550751]
[1768414626835,97.43250134,146.08,146.0,9.7140939]
[1768414627035,1.60320134,146.07,145.97,9.7140939]
[1768414627241,1.60320134,146.04,145.94,9.7140939]
[1768414627445,1.60320134,146.03,145.94,9.7140939]
[1768414627936,1.60320134,146.03,145.9,80.82]
[1768414627937,1.58336834,146.02,145.91,9.7140939]